[Event "Kvibergspelen 2022"]
[Site "Kviberg Park Hotel & Conference, Krutvagen 2, Gothenburg, Sweden"]
[Date "2022.09.30"]
[Round "2.6"]
[White "Fridgeirsson, Dagur Andri"]
[Black "Stefansson, Vignir Vatnar"]
[Result "0-1"]
[TimeControl "15 minutes + 5 seconds per move from move one (Round 1 - 4) / 90 minutes + 30 seconds per move from move one (Round 5 - 8)"]
[BlackTitle "IM"]
[WhiteFideId "2303124"]
[BlackFideId "2308649"]
[WhiteElo "1943"]
[BlackElo "2452"]

1. d4 {[%clk 00:15:08]} {[%emt 00:00:03]} d5 {[%clk 00:15:05]} {[%emt
00:00:05]} 2. c4 {[%clk 00:15:10]} {[%emt 00:00:03]} e6 {[%clk 00:15:08]}
{[%emt 00:00:02]} 3. Nc3 {[%clk 00:15:10]} {[%emt 00:00:06]} Bb4 {[%clk
00:15:10]} {[%emt 00:00:02]} 4. Qc2 {[%clk 00:14:40]} {[%emt 00:00:35]} dxc4
{[%clk 00:15:11]} {[%emt 00:00:04]} 5. Nf3 {[%clk 00:14:43]} {[%emt 00:00:02]}
a6 {[%clk 00:15:03]} {[%emt 00:00:13]} 6. a4 {[%clk 00:14:28]} {[%emt
00:00:21]} Nc6 {[%clk 00:14:19]} {[%emt 00:00:49]} 7. e3 {[%clk 00:14:22]}
{[%emt 00:00:11]} Na5 {[%clk 00:14:23]} {[%emt 00:00:02]} 8. Bd2 {[%clk
00:13:54]} {[%emt 00:00:33]} c6 {[%clk 00:14:14]} {[%emt 00:00:13]} 9. Ne5
{[%clk 00:13:48]} {[%emt 00:00:11]} b5 {[%clk 00:14:13]} {[%emt 00:00:06]} 10.
axb5 {[%clk 00:13:46]} {[%emt 00:00:08]} cxb5 {[%clk 00:14:13]} {[%emt
00:00:05]} 11. Nxc4 {[%clk 00:11:31]} {[%emt 00:02:19]} Nxc4 {[%clk 00:11:21]}
{[%emt 00:02:57]} 12. Bxc4 {[%clk 00:11:10]} {[%emt 00:00:27]} Bb7 {[%clk
00:10:04]} {[%emt 00:01:21]} 13. Bd3 {[%clk 00:08:54]} {[%emt 00:02:21]} Nf6
{[%clk 00:09:49]} {[%emt 00:00:20]} 14. O-O {[%clk 00:08:31]} {[%emt 00:00:28]}
O-O {[%clk 00:09:46]} {[%emt 00:00:08]} 15. Ne4 {[%clk 00:06:05]} {[%emt
00:02:32]} Rc8 {[%clk 00:08:46]} {[%emt 00:01:04]} 16. Nxf6+ {[%clk 00:04:30]}
{[%emt 00:01:41]} Qxf6 {[%clk 00:08:49]} {[%emt 00:00:01]} 17. Qd1 {[%clk
00:04:13]} {[%emt 00:00:21]} Qg5 {[%clk 00:08:40]} {[%emt 00:00:15]} 18. f3
{[%clk 00:03:30]} {[%emt 00:00:48]} Bxd2 {[%clk 00:08:43]} {[%emt 00:00:02]} 19.
Qxd2 {[%clk 00:03:30]} {[%emt 00:00:05]} Rfd8 {[%clk 00:08:44]} {[%emt
00:00:04]} 20. Qf2 {[%clk 00:03:19]} {[%emt 00:00:16]} e5 {[%clk 00:08:42]}
{[%emt 00:00:07]} 21. Be4 {[%clk 00:03:13]} {[%emt 00:00:11]} Bxe4 {[%clk
00:08:02]} {[%emt 00:00:45]} 22. fxe4 {[%clk 00:03:17]} {[%emt 00:00:02]} Qg6
{[%clk 00:08:05]} 23. d5 {[%clk 00:02:46]} {[%emt 00:00:35]} f6 {[%clk
00:07:55]} {[%emt 00:00:16]} 24. Qf3 {[%clk 00:00:55]} {[%emt 00:01:56]} Rc4
{[%clk 00:07:36]} {[%emt 00:00:24]} 25. Rxa6 {[%clk 00:00:42]} {[%emt
00:00:18]} Qxe4 {[%clk 00:07:32]} {[%emt 00:00:09]} 26. Qg3 {[%clk 00:00:28]}
{[%emt 00:00:20]} Qg6 {[%clk 00:06:49]} {[%emt 00:00:48]} 27. Qxg6 {[%clk
00:00:22]} {[%emt 00:00:10]} hxg6 {[%clk 00:06:52]} {[%emt 00:00:01]} 28. d6
{[%clk 00:00:24]} {[%emt 00:00:04]} Rd7 {[%clk 00:06:39]} {[%emt 00:00:18]} 29.
Rd1 {[%clk 00:00:27]} {[%emt 00:00:02]} Kf7 {[%clk 00:06:42]} {[%emt 00:00:02]}
30. Rb6 {[%clk 00:00:14]} {[%emt 00:00:19]} Rb4 {[%clk 00:06:43]} {[%emt
00:00:03]} 31. Rd2 {[%clk 00:00:16]} {[%emt 00:00:03]} Ke6 {[%clk 00:06:47]}
{[%emt 00:00:02]} 32. Kf2 {[%clk 00:00:20]} g5 {[%clk 00:06:47]} {[%emt
00:00:05]} 33. h3 {[%clk 00:00:23]} {[%emt 00:00:02]} f5 {[%clk 00:06:40]}
{[%emt 00:00:11]} 34. Ke2 {[%clk 00:00:22]} {[%emt 00:00:06]} Rb3 {[%clk
00:06:41]} {[%emt 00:00:04]} 35. Kf2 {[%clk 00:00:20]} {[%emt 00:00:06]} g6
{[%clk 00:06:42]} {[%emt 00:00:04]} 36. Ke2 {[%clk 00:00:25]} f4 {[%clk
00:06:46]} 37. exf4 {[%clk 00:00:27]} {[%emt 00:00:03]} gxf4 {[%clk 00:06:49]}
38. Kf2 {[%clk 00:00:29]} {[%emt 00:00:03]} g5 {[%clk 00:06:48]} {[%emt
00:00:06]} 39. Ke2 {[%clk 00:00:29]} {[%emt 00:00:06]} e4 {[%clk 00:06:50]}
{[%emt 00:00:02]} 40. Kd1 {[%clk 00:00:12]} {[%emt 00:00:22]} e3 {[%clk
00:06:53]} {[%emt 00:00:02]} 41. Rd4 {[%clk 00:00:13]} {[%emt 00:00:04]} Rxb2
{[%clk 00:06:56]} {[%emt 00:00:02]} 42. Re4+ {[%clk 00:00:14]} {[%emt
00:00:05]} Kf6 {[%clk 00:06:59]} 43. Re8 {[%clk 00:00:13]} {[%emt 00:00:07]}
Rd2+ {[%clk 00:07:01]} {[%emt 00:00:02]} 44. Kc1 {[%clk 00:00:06]} {[%emt
00:00:12]} R7xd6 {[%clk 00:07:04]} {[%emt 00:00:02]} 45. Rxb5 {[%clk 00:00:10]}
{[%emt 00:00:01]} Rxg2 {[%clk 00:07:04]} {[%emt 00:00:05]} 46. Rf8+ {[%clk
00:00:14]} {[%emt 00:00:02]} Kg7 {[%clk 00:06:58]} {[%emt 00:00:10]} 47. Rff5
{[%clk 00:00:14]} {[%emt 00:00:06]} Kg6 {[%clk 00:07:01]} 48. Rf8 {[%clk
00:00:12]} {[%emt 00:00:08]} e2 {[%clk 00:07:02]} {[%emt 00:00:03]} 49. Rg8+
{[%clk 00:00:14]} {[%emt 00:00:03]} Kf6 {[%clk 00:07:06]} 0-1

[Event "Kvibergspelen 2022"]
[Site "Kviberg Park Hotel & Conference, Krutvagen 2, Gothenburg, Sweden"]
[Date "2022.09.30"]
[Round "2.7"]
[White "Mitusov, Semen"]
[Black "Hagevi, Vidar"]
[Result "1/2-1/2"]
[TimeControl "15 minutes + 5 seconds per move from move one (Round 1 - 4) / 90 minutes + 30 seconds per move from move one (Round 5 - 8)"]
[WhiteTitle "FM"]
[WhiteFideId "14151049"]
[BlackFideId "1767526"]
[WhiteElo "2418"]
[BlackElo "1922"]

1. e4 {[%clk 00:15:07]} {[%emt 00:00:02]} e6 {[%clk 00:15:08]} {[%emt
00:00:02]} 2. d4 {[%clk 00:15:04]} {[%emt 00:00:08]} d5 {[%clk 00:15:11]}
{[%emt 00:00:02]} 3. Nd2 {[%clk 00:15:07]} {[%emt 00:00:02]} c5 {[%clk
00:15:13]} {[%emt 00:00:03]} 4. Ngf3 {[%clk 00:15:10]} {[%emt 00:00:02]} cxd4
{[%clk 00:15:03]} {[%emt 00:00:16]} 5. Nxd4 {[%clk 00:15:05]} {[%emt 00:00:10]}
Nc6 {[%clk 00:14:57]} {[%emt 00:00:10]} 6. Bb5 {[%clk 00:15:08]} {[%emt
00:00:02]} Bd7 {[%clk 00:14:49]} {[%emt 00:00:13]} 7. Nxc6 {[%clk 00:15:07]}
{[%emt 00:00:06]} bxc6 {[%clk 00:14:51]} {[%emt 00:00:03]} 8. Bd3 {[%clk
00:15:10]} {[%emt 00:00:03]} Bd6 {[%clk 00:14:24]} {[%emt 00:00:30]} 9. Qe2
{[%clk 00:15:07]} {[%emt 00:00:09]} Qc7 {[%clk 00:14:03]} {[%emt 00:00:26]} 10.
Nf3 {[%clk 00:15:03]} {[%emt 00:00:09]} dxe4 {[%clk 00:13:04]} {[%emt
00:01:04]} 11. Qxe4 {[%clk 00:15:01]} {[%emt 00:00:07]} Nf6 {[%clk 00:12:50]}
{[%emt 00:00:19]} 12. Qh4 {[%clk 00:14:53]} {[%emt 00:00:13]} h6 {[%clk
00:12:08]} {[%emt 00:00:47]} 13. O-O {[%clk 00:14:42]} {[%emt 00:00:16]} Nd5
{[%clk 00:08:02]} {[%emt 00:04:11]} 14. Rd1 {[%clk 00:12:20]} {[%emt 00:02:27]}
Nf4 {[%clk 00:07:01]} {[%emt 00:01:06]} 15. Bf1 {[%clk 00:11:55]} {[%emt
00:00:30]} g5 {[%clk 00:04:40]} {[%emt 00:02:26]} 16. Nxg5 {[%clk 00:10:23]}
{[%emt 00:01:37]} Ng6 {[%clk 00:04:39]} {[%emt 00:00:06]} 17. Nxe6 {[%clk
00:10:08]} {[%emt 00:00:20]} Nxh4 {[%clk 00:03:59]} {[%emt 00:00:45]} 18. Nxc7+
{[%clk 00:10:10]} {[%emt 00:00:03]} Bxc7 {[%clk 00:04:02]} {[%emt 00:00:03]} 19.
Bc4 {[%clk 00:09:50]} {[%emt 00:00:24]} Be6 {[%clk 00:03:34]} {[%emt 00:00:32]}
20. Bxe6 {[%clk 00:09:18]} {[%emt 00:00:38]} fxe6 {[%clk 00:03:35]} {[%emt
00:00:04]} 21. Be3 {[%clk 00:09:22]} Nf5 {[%clk 00:03:04]} {[%emt 00:00:36]} 22.
Bc5 {[%clk 00:09:25]} {[%emt 00:00:02]} Bb6 {[%clk 00:02:54]} {[%emt 00:00:14]}
23. Bb4 {[%clk 00:08:58]} {[%emt 00:00:34]} Rd8 {[%clk 00:02:14]} {[%emt
00:00:44]} 24. Re1 {[%clk 00:08:57]} {[%emt 00:00:06]} Kf7 {[%clk 00:02:09]}
{[%emt 00:00:10]} 25. a4 {[%clk 00:09:01]} {[%emt 00:00:02]} a5 {[%clk
00:01:59]} {[%emt 00:00:14]} 26. Bc3 {[%clk 00:09:00]} {[%emt 00:00:06]} Rhe8
{[%clk 00:02:01]} {[%emt 00:00:02]} 27. h3 {[%clk 00:08:32]} {[%emt 00:00:35]}
Nd4 {[%clk 00:01:46]} {[%emt 00:00:19]} 28. Rac1 {[%clk 00:08:32]} {[%emt
00:00:05]} Rd5 {[%clk 00:01:36]} {[%emt 00:00:15]} 29. Re4 {[%clk 00:08:16]}
{[%emt 00:00:21]} c5 {[%clk 00:01:14]} {[%emt 00:00:27]} 30. Rf4+ {[%clk
00:07:41]} {[%emt 00:00:40]} Kg6 {[%clk 00:01:01]} {[%emt 00:00:18]} 31. Rg4+
{[%clk 00:07:07]} {[%emt 00:00:40]} Kh7 {[%clk 00:01:03]} {[%emt 00:00:02]} 32.
Re1 {[%clk 00:07:04]} {[%emt 00:00:08]} Bc7 {[%clk 00:00:52]} {[%emt 00:00:15]}
33. Kf1 {[%clk 00:06:02]} {[%emt 00:01:08]} Rd7 {[%clk 00:00:27]} {[%emt
00:00:30]} 34. Rge4 {[%clk 00:05:32]} {[%emt 00:00:35]} Nxc2 {[%clk 00:00:20]}
{[%emt 00:00:13]} 35. Rxe6 {[%clk 00:05:35]} {[%emt 00:00:02]} Rxe6 {[%clk
00:00:18]} {[%emt 00:00:06]} 36. Rxe6 {[%clk 00:05:38]} {[%emt 00:00:02]} Nd4
{[%clk 00:00:16]} {[%emt 00:00:07]} 37. Ra6 {[%clk 00:05:37]} {[%emt 00:00:07]}
Bd8 {[%clk 00:00:08]} {[%emt 00:00:12]} 38. Bd2 {[%clk 00:05:04]} {[%emt
00:00:38]} Nf5 {[%clk 00:00:07]} {[%emt 00:00:06]} 39. Bxa5 {[%clk 00:04:55]}
{[%emt 00:00:14]} Bxa5 {[%emt 00:00:06]} 40. Rxa5 {[%clk 00:04:55]} Rc7 {[%clk
00:00:10]} {[%emt 00:00:06]} 41. Ke2 {[%clk 00:04:12]} {[%emt 00:00:47]} Kg6
{[%clk 00:00:12]} {[%emt 00:00:03]} 42. Kd3 {[%clk 00:04:08]} {[%emt 00:00:09]}
Nd6 {[%clk 00:00:11]} {[%emt 00:00:05]} 43. Ra6 {[%clk 00:04:11]} {[%emt
00:00:03]} Rd7 {[%clk 00:00:14]} {[%emt 00:00:03]} 44. Rc6 {[%clk 00:04:12]}
{[%emt 00:00:04]} Kf7 {[%clk 00:00:11]} {[%emt 00:00:07]} 45. f3 {[%clk
00:04:05]} {[%emt 00:00:13]} Ke7 {[%clk 00:00:11]} {[%emt 00:00:05]} 46. Kc2
{[%clk 00:03:49]} {[%emt 00:00:20]} Nc4 {[%clk 00:00:09]} {[%emt 00:00:07]} 47.
Rxc5 {[%clk 00:03:24]} {[%emt 00:00:31]} Ne3+ {[%clk 00:00:12]} {[%emt
00:00:01]} 48. Kc3 {[%clk 00:03:21]} {[%emt 00:00:08]} Nxg2 {[%clk 00:00:12]}
{[%emt 00:00:05]} 49. a5 {[%clk 00:03:16]} {[%emt 00:00:11]} Kd6 {[%clk
00:00:11]} {[%emt 00:00:06]} 50. Rh5 {[%clk 00:03:08]} {[%emt 00:00:12]} Rh7
{[%clk 00:00:07]} {[%emt 00:00:09]} 51. a6 {[%clk 00:02:52]} {[%emt 00:00:21]}
Nf4 {[%clk 00:00:10]} {[%emt 00:00:02]} 52. Ra5 {[%clk 00:02:56]} {[%emt
00:00:01]} Ra7 {[%clk 00:00:12]} {[%emt 00:00:04]} 53. b4 {[%clk 00:02:57]}
{[%emt 00:00:03]} Nd5+ {[%clk 00:00:15]} {[%emt 00:00:02]} 54. Kc4 {[%clk
00:02:54]} {[%emt 00:00:09]} Ne3+ {[%clk 00:00:18]} {[%emt 00:00:02]} 55. Kb5
{[%clk 00:02:39]} {[%emt 00:00:19]} Nd5 {[%clk 00:00:21]} {[%emt 00:00:02]} 56.
Ra1 {[%clk 00:02:43]} {[%emt 00:00:01]} Ra8 {[%clk 00:00:12]} {[%emt 00:00:14]}
57. a7 {[%clk 00:02:47]} {[%emt 00:00:02]} Kc7 {[%clk 00:00:15]} {[%emt
00:00:02]} 58. Ra6 {[%clk 00:02:05]} {[%emt 00:00:46]} Kb7 {[%clk 00:00:10]}
{[%emt 00:00:11]} 59. Rxh6 {[%clk 00:02:06]} {[%emt 00:00:04]} Nc7+ {[%clk
00:00:10]} {[%emt 00:00:05]} 60. Kc5 {[%clk 00:02:03]} {[%emt 00:00:07]} Rxa7
{[%clk 00:00:11]} {[%emt 00:00:04]} 61. h4 {[%clk 00:02:05]} {[%emt 00:00:03]}
Ra3 {[%clk 00:00:14]} {[%emt 00:00:03]} 62. Rf6 {[%clk 00:01:45]} {[%emt
00:00:24]} Rc3+ {[%clk 00:00:14]} {[%emt 00:00:05]} 63. Kd4 {[%clk 00:01:49]}
{[%emt 00:00:02]} Rb3 {[%clk 00:00:10]} {[%emt 00:00:08]} 64. Kc4 {[%clk
00:00:43]} {[%emt 00:01:11]} Rxb4+ {[%clk 00:00:14]} {[%emt 00:00:02]} 65. Kxb4
{[%clk 00:00:47]} {[%emt 00:00:01]} Nd5+ {[%clk 00:00:17]} 66. Kc5 {[%clk
00:00:51]} Nxf6 {[%clk 00:00:21]} {[%emt 00:00:02]} 67. Kd6 {[%clk 00:00:55]}
Kc8 {[%clk 00:00:16]} {[%emt 00:00:09]} 68. Ke6 {[%clk 00:00:48]} {[%emt
00:00:12]} Nh5 {[%clk 00:00:18]} {[%emt 00:00:03]} 69. Kf5 {[%clk 00:00:52]}
{[%emt 00:00:01]} Kd7 {[%clk 00:00:21]} {[%emt 00:00:03]} 70. Kg5 {[%clk
00:00:54]} {[%emt 00:00:03]} Ng3 {[%clk 00:00:15]} {[%emt 00:00:10]} 71. h5
{[%clk 00:00:56]} {[%emt 00:00:03]} Ke7 {[%clk 00:00:12]} {[%emt 00:00:09]} 72.
Kg6 {[%clk 00:00:34]} {[%emt 00:00:28]} Nxh5 {[%clk 00:00:13]} {[%emt
00:00:03]} 73. Kxh5 {[%clk 00:00:38]} {[%emt 00:00:01]} Kf6 {[%clk 00:00:15]}
{[%emt 00:00:04]} 74. Kg4 {[%clk 00:00:41]} {[%emt 00:00:02]} Kg6 {[%clk
00:00:07]} {[%emt 00:00:13]} 75. Kf4 {[%clk 00:00:43]} {[%emt 00:00:02]} Kf6
{[%clk 00:00:11]} {[%emt 00:00:01]} 76. Ke4 {[%clk 00:00:47]} Ke6 {[%clk
00:00:10]} {[%emt 00:00:07]} 77. f4 {[%clk 00:00:48]} {[%emt 00:00:04]} Kf6
{[%clk 00:00:12]} {[%emt 00:00:03]} 78. f5 {[%clk 00:00:51]} {[%emt 00:00:02]}
Kf7 {[%clk 00:00:12]} {[%emt 00:00:05]} 79. Ke5 {[%clk 00:00:55]} {[%emt
00:00:02]} Ke7 {[%clk 00:00:15]} {[%emt 00:00:02]} 80. f6+ {[%clk 00:00:58]}
{[%emt 00:00:02]} Kf7 {[%clk 00:00:18]} 81. Kf5 {[%clk 00:01:02]} Kf8 {[%clk
00:00:21]} {[%emt 00:00:02]} 82. Ke6 {[%clk 00:01:06]} {[%emt 00:00:01]} Ke8
{[%clk 00:00:25]} {[%emt 00:00:02]} 83. Ke5 {[%clk 00:01:10]} {[%emt 00:00:01]}
Kf7 {[%clk 00:00:17]} {[%emt 00:00:12]} 84. Kf5 {[%clk 00:01:14]} Kf8 {[%clk
00:00:21]} {[%emt 00:00:01]} 85. Kg6 {[%clk 00:01:17]} {[%emt 00:00:02]} Kg8
{[%clk 00:00:24]} {[%emt 00:00:01]} 86. f7+ {[%clk 00:01:21]} {[%emt 00:00:02]}
Kf8 {[%clk 00:00:28]} 87. Kf6 {[%clk 00:01:19]} 1/2-1/2

[Event "Kvibergspelen 2022"]
[Site "Kviberg Park Hotel & Conference, Krutvagen 2, Gothenburg, Sweden"]
[Date "2022.09.30"]
[Round "2.8"]
[White "Frisk, Hans"]
[Black "Golubka, Petro"]
[Result "0-1"]
[TimeControl "15 minutes + 5 seconds per move from move one (Round 1 - 4) / 90 minutes + 30 seconds per move from move one (Round 5 - 8)"]
[BlackTitle "GM"]
[WhiteFideId "1708570"]
[BlackFideId "14114224"]
[WhiteElo "1911"]
[BlackElo "2360"]

1. Nf3 {[%clk 00:15:07]} {[%emt 00:00:02]} e6 {[%clk 00:15:06]} {[%emt
00:00:05]} 2. g3 {[%clk 00:15:03]} {[%emt 00:00:08]} d5 {[%clk 00:15:09]}
{[%emt 00:00:03]} 3. Bg2 {[%clk 00:14:24]} {[%emt 00:00:44]} g5 {[%clk
00:15:10]} {[%emt 00:00:03]} 4. d4 {[%clk 00:13:40]} {[%emt 00:00:48]} h6
{[%clk 00:15:08]} {[%emt 00:00:08]} 5. c4 {[%clk 00:12:56]} {[%emt 00:00:49]}
Bg7 {[%clk 00:15:10]} {[%emt 00:00:04]} 6. cxd5 {[%clk 00:12:30]} {[%emt
00:00:30]} exd5 {[%clk 00:15:13]} {[%emt 00:00:02]} 7. Nc3 {[%clk 00:12:14]}
{[%emt 00:00:21]} Nf6 {[%clk 00:15:16]} {[%emt 00:00:02]} 8. h4 {[%clk
00:11:42]} {[%emt 00:00:37]} g4 {[%clk 00:15:20]} {[%emt 00:00:02]} 9. Ne5
{[%clk 00:11:42]} {[%emt 00:00:05]} c6 {[%clk 00:15:17]} {[%emt 00:00:08]} 10.
Bf4 {[%clk 00:10:39]} {[%emt 00:01:07]} Be6 {[%clk 00:14:16]} {[%emt 00:01:07]}
11. h5 {[%clk 00:10:17]} {[%emt 00:00:26]} Nbd7 {[%clk 00:14:13]} {[%emt
00:00:08]} 12. Qd2 {[%clk 00:10:06]} {[%emt 00:00:16]} Nb6 {[%clk 00:14:01]}
{[%emt 00:00:17]} 13. b3 {[%clk 00:09:53]} {[%emt 00:00:18]} Nfd7 {[%clk
00:14:03]} {[%emt 00:00:04]} 14. Rh4 {[%clk 00:08:37]} {[%emt 00:01:21]} Nxe5
{[%clk 00:12:43]} {[%emt 00:01:25]} 15. Bxe5 {[%clk 00:08:38]} {[%emt
00:00:04]} Bxe5 {[%clk 00:12:35]} {[%emt 00:00:13]} 16. dxe5 {[%clk 00:08:39]}
{[%emt 00:00:03]} Qg5 {[%clk 00:12:37]} {[%emt 00:00:02]} 17. Qd4 {[%clk
00:07:32]} {[%emt 00:01:13]} Nd7 {[%clk 00:12:37]} {[%emt 00:00:06]} 18. Qf4
{[%clk 00:05:15]} {[%emt 00:02:21]} Qxe5 {[%clk 00:12:31]} {[%emt 00:00:11]} 19.
Qxe5 {[%clk 00:05:18]} {[%emt 00:00:02]} Nxe5 {[%clk 00:12:34]} {[%emt
00:00:02]} 20. O-O-O {[%clk 00:05:16]} {[%emt 00:00:07]} f5 {[%clk 00:12:37]}
{[%emt 00:00:02]} 21. f3 {[%clk 00:04:52]} {[%emt 00:00:29]} Ke7 {[%clk
00:12:41]} {[%emt 00:00:02]} 22. fxg4 {[%clk 00:04:47]} {[%emt 00:00:10]} Nxg4
{[%clk 00:12:44]} {[%emt 00:00:02]} 23. Rd3 {[%clk 00:04:27]} {[%emt 00:00:24]}
Rhg8 {[%clk 00:12:45]} {[%emt 00:00:05]} 24. Rf3 {[%clk 00:04:14]} {[%emt
00:00:18]} Rg5 {[%clk 00:12:43]} {[%emt 00:00:07]} 25. Na4 {[%clk 00:04:01]}
{[%emt 00:00:17]} Kd6 {[%clk 00:12:45]} {[%emt 00:00:04]} 26. Bh3 {[%clk
00:03:55]} {[%emt 00:00:10]} Ne5 {[%clk 00:12:43]} {[%emt 00:00:07]} 27. Re3
{[%clk 00:03:21]} {[%emt 00:00:39]} Rag8 {[%clk 00:12:44]} {[%emt 00:00:04]} 28.
Nc5 {[%clk 00:02:47]} {[%emt 00:00:39]} Kxc5 {[%clk 00:12:36]} {[%emt
00:00:14]} 29. Rxe5 {[%clk 00:02:50]} {[%emt 00:00:02]} Kd6 {[%clk 00:12:40]}
30. Re3 {[%clk 00:02:45]} {[%emt 00:00:09]} Rxg3 {[%clk 00:12:42]} {[%emt
00:00:03]} 0-1

[Event "Kvibergspelen 2022"]
[Site "Kviberg Park Hotel & Conference, Krutvagen 2, Gothenburg, Sweden"]
[Date "2022.09.30"]
[Round "2.9"]
[White "Hamark, Jesper"]
[Black "Nilsson, Oliver"]
[Result "1-0"]
[TimeControl "15 minutes + 5 seconds per move from move one (Round 1 - 4) / 90 minutes + 30 seconds per move from move one (Round 5 - 8)"]
[WhiteFideId "1704338"]
[BlackFideId "1730177"]
[WhiteElo "2348"]
[BlackElo "1909"]

1. e4 {[%clk 00:15:07]} {[%emt 00:00:03]} e5 {[%clk 00:15:09]} {[%emt
00:00:02]} 2. d4 {[%clk 00:15:07]} {[%emt 00:00:05]} exd4 {[%clk 00:15:12]}
{[%emt 00:00:02]} 3. Nf3 {[%clk 00:15:11]} Nc6 {[%clk 00:15:15]} {[%emt
00:00:02]} 4. Bc4 {[%clk 00:15:15]} {[%emt 00:00:01]} Nf6 {[%clk 00:15:18]}
{[%emt 00:00:03]} 5. e5 {[%clk 00:15:18]} Ne4 {[%clk 00:15:21]} {[%emt
00:00:01]} 6. Qe2 {[%clk 00:14:38]} {[%emt 00:00:45]} Nc5 {[%clk 00:15:24]}
{[%emt 00:00:02]} 7. O-O {[%clk 00:14:39]} {[%emt 00:00:04]} Be7 {[%clk
00:15:25]} {[%emt 00:00:05]} 8. c3 {[%clk 00:13:51]} {[%emt 00:00:53]} Ne6
{[%clk 00:15:09]} {[%emt 00:00:20]} 9. Rd1 {[%clk 00:13:36]} {[%emt 00:00:20]}
dxc3 {[%clk 00:14:27]} {[%emt 00:00:47]} 10. Nxc3 {[%clk 00:13:39]} {[%emt
00:00:02]} d6 {[%clk 00:14:31]} {[%emt 00:00:01]} 11. Nd5 {[%clk 00:13:19]}
{[%emt 00:00:25]} O-O {[%clk 00:14:23]} {[%emt 00:00:14]} 12. b4 {[%clk
00:12:27]} {[%emt 00:00:57]} Bd7 {[%clk 00:13:58]} {[%emt 00:00:30]} 13. Bb2
{[%clk 00:09:29]} {[%emt 00:03:03]} a6 {[%clk 00:13:49]} {[%emt 00:00:13]} 14.
a4 {[%clk 00:08:46]} {[%emt 00:00:48]} Re8 {[%clk 00:12:45]} {[%emt 00:01:10]}
15. Nxe7+ {[%clk 00:07:56]} {[%emt 00:00:55]} Qxe7 {[%clk 00:12:46]} {[%emt
00:00:04]} 16. exd6 {[%clk 00:07:50]} {[%emt 00:00:11]} cxd6 {[%clk 00:12:50]}
{[%emt 00:00:02]} 17. Qd2 {[%clk 00:07:50]} {[%emt 00:00:04]} Rad8 {[%clk
00:12:40]} {[%emt 00:00:16]} 18. Qc3 {[%clk 00:04:44]} {[%emt 00:03:10]} f6
{[%clk 00:12:39]} {[%emt 00:00:06]} 19. Qb3 {[%clk 00:04:23]} {[%emt 00:00:27]}
Bc8 {[%clk 00:11:48]} {[%emt 00:00:56]} 20. Bd5 {[%clk 00:04:13]} {[%emt
00:00:15]} Ne5 {[%clk 00:11:43]} {[%emt 00:00:10]} 21. Nd4 {[%clk 00:04:13]}
{[%emt 00:00:05]} Kh8 {[%clk 00:11:30]} {[%emt 00:00:17]} 22. Nf5 {[%clk
00:04:16]} {[%emt 00:00:02]} Qf7 {[%clk 00:10:52]} {[%emt 00:00:44]} 23. Rac1
{[%clk 00:04:11]} {[%emt 00:00:09]} Qg6 {[%clk 00:10:17]} {[%emt 00:00:40]} 24.
Rxc8 {[%clk 00:03:39]} {[%emt 00:00:38]} Rxc8 {[%clk 00:09:40]} {[%emt
00:00:42]} 25. Bxe6 {[%clk 00:03:34]} {[%emt 00:00:09]} Rxe6 {[%clk 00:06:46]}
{[%emt 00:02:59]} 26. Qxe6 {[%clk 00:03:14]} {[%emt 00:00:25]} Re8 {[%clk
00:06:50]} {[%emt 00:00:01]} 27. Qxd6 {[%clk 00:01:52]} {[%emt 00:01:28]} Qxf5
{[%clk 00:06:49]} {[%emt 00:00:05]} 28. Bxe5 {[%clk 00:01:54]} {[%emt
00:00:04]} fxe5 {[%clk 00:06:11]} {[%emt 00:00:42]} 29. Qd7 {[%clk 00:01:47]}
{[%emt 00:00:12]} Qxd7 {[%clk 00:05:09]} {[%emt 00:01:08]} 30. Rxd7 {[%clk
00:01:51]} Rc8 {[%clk 00:04:26]} {[%emt 00:00:48]} 31. g3 {[%clk 00:01:54]}
{[%emt 00:00:02]} h6 {[%clk 00:04:20]} {[%emt 00:00:10]} 32. Rxb7 {[%clk
00:01:57]} {[%emt 00:00:02]} Rc1+ {[%clk 00:04:24]} {[%emt 00:00:02]} 33. Kg2
{[%clk 00:02:01]} Ra1 {[%clk 00:04:28]} {[%emt 00:00:02]} 34. a5 {[%clk
00:02:00]} {[%emt 00:00:06]} Rb1 {[%clk 00:04:14]} {[%emt 00:00:18]} 35. Kf3
{[%clk 00:01:55]} {[%emt 00:00:09]} Kg8 {[%clk 00:04:14]} {[%emt 00:00:06]} 36.
h4 {[%clk 00:01:53]} {[%emt 00:00:07]} Kf8 {[%clk 00:04:13]} {[%emt 00:00:07]}
37. Ke4 {[%clk 00:01:55]} {[%emt 00:00:02]} Re1+ {[%clk 00:04:16]} {[%emt
00:00:02]} 38. Kf3 {[%clk 00:01:43]} {[%emt 00:00:17]} g5 {[%clk 00:04:09]}
{[%emt 00:00:12]} 39. h5 {[%clk 00:01:46]} {[%emt 00:00:03]} e4+ {[%clk
00:04:06]} {[%emt 00:00:08]} 40. Kg2 {[%clk 00:01:45]} {[%emt 00:00:04]} Re2
{[%clk 00:04:00]} {[%emt 00:00:12]} 41. Kf1 {[%clk 00:01:48]} {[%emt 00:00:02]}
Rb2 {[%clk 00:04:00]} {[%emt 00:00:05]} 42. Rb6 {[%clk 00:01:48]} {[%emt
00:00:05]} Kg7 {[%clk 00:04:02]} {[%emt 00:00:03]} 43. Ke1 {[%clk 00:01:43]}
{[%emt 00:00:10]} Rb1+ {[%clk 00:03:51]} {[%emt 00:00:16]} 44. Ke2 {[%clk
00:01:46]} Rh1 {[%clk 00:03:54]} {[%emt 00:00:02]} 45. Rg6+ {[%clk 00:01:43]}
{[%emt 00:00:08]} Kh7 {[%clk 00:03:56]} {[%emt 00:00:03]} 46. Rxa6 {[%clk
00:01:47]} {[%emt 00:00:02]} Rxh5 {[%clk 00:04:00]} {[%emt 00:00:01]} 47. Re6
{[%clk 00:01:09]} {[%emt 00:00:42]} g4 {[%clk 00:03:41]} {[%emt 00:00:25]} 48.
Rxe4 {[%clk 00:01:12]} {[%emt 00:00:01]} Rg5 {[%clk 00:03:45]} {[%emt
00:00:02]} 49. a6 {[%clk 00:00:56]} {[%emt 00:00:22]} h5 {[%clk 00:03:48]} 50.
a7 {[%clk 00:00:52]} {[%emt 00:00:09]} Rg8 {[%clk 00:03:51]} {[%emt 00:00:02]}
51. b5 {[%clk 00:00:54]} 1-0